[Event "2nd Serbia Open Masters 2022"]
[Site "Novi Sad"]
[Date "2022.07.01"]
[Round "4.40"]
[White "Vaishali R"]
[Black "Leskur, Dejan"]
[Result "1-0"]
[ECO "B06"]
[WhiteElo "2409"]
[BlackElo "2265"]
[Annotator "TA"]
[PlyCount "117"]
[EventDate "2022.06.28"]
[EventType "swiss"]
[EventCountry "SRB"]
[SourceTitle "playchess.com"]
[Source "ChessBase"]
[SourceQuality "1"]
[TimeControl "40/5400+30:900+30"]

{[%evp 9,117,37,50,40,45,29,55,56,93,15,29,29,62,72,104,54,60,52,87,85,86,56,83,64,63,62,91,62,111,116,128,128,114,114,217,233,497,489,482,487,772,739,1070,1076,1050,699,634,0,1029,1043,1012,792,912,797,807,773,726,742,729,734,724,562,547,531,479,461,483,302,302,293,320,320,320,335,324,227,227,227,227,221,216,202,195,0,238,204,345,250,242,242,242,134,127,82,105,58,64,62,143,143,191,184,176,114,162,147,365,275,29981,29982]} 1. e4 {[%emt 0:00:29]} g6 {[%emt 0:00:09]} 2. d4 {[%emt 0:00:10]} d6 {[%emt 0:00:20]} 3. Nc3 {[%emt 0:00:07]} Bg7 {[%emt 0:00:04]} 4. Be3 {[%emt 0:00:17]} a6 {[%emt 0:00:07]} 5. g4 {[%emt 0:00:58][%cal Bg2g4,Bg4g5][%mdl 32]} b5 {[%emt 0:02:05]} 6. Bg2 {[%emt 0:00:48][%cal Oe4e5] B06: Modern Defence.} Bb7 {[%emt 0:00:09]} 7. h4 {[%emt 0:00:21]} h6 {[%emt 0:06:02]} 8. g5 {[%emt 0:10:21] White is slightly better.} h5 {[%emt 0:08:30] [#]} 9. a3 $146 {[%emt 0:03:25]} ({Better is} 9. Nge2 $16) ({Predecessor:} 9. d5 c5 10. a3 Nd7 11. Nh3 Ne5 12. O-O Qd7 13. f3 e6 14. Nf4 Nc4 15. Bf2 Bxc3 16. bxc3 {1-0 (44) Ivic,V (2581)-Matinian,N (2470) Chess.com INT 2021}) 9... e6 $11 {[%emt 0:03:39]} 10. Nge2 {[%emt 0:01:51]} Ne7 {[%emt 0:00:41]} 11. d5 {[%emt 0:13:49]} e5 {[%emt 0:22:55]} 12. Qd3 {[%emt 0:05:51]} (12. f4 $16) 12... Nd7 $14 {[%emt 0:03:50]} 13. O-O-O {[%emt 0:03:23]} Nc8 {[%emt 0:00:35]} 14. Ng3 {[%emt 0:19:36] White is more active.} Ncb6 {[%emt 0:00:36]} 15. Kb1 {[%emt 0:00:47]} Qe7 {[%emt 0:01:17]} 16. Bh3 {[%emt 0:02:19]} Nc5 {[%emt 0:04:31]} 17. Qe2 {[%emt 0:16:49]} Rd8 {[%emt 0:06:18]} 18. Bg2 {[%emt 0:02:29]} Bc8 {[%emt 0:18:03]} (18... Nc4 $14 {deserves consideration.}) 19. Bf3 $16 {[%emt 0:01:12]} Bd7 {[%emt 0:01:08] [#]} 20. Bxh5 $1 {[%emt 0:06:19][%mdl 512]} gxh5 {[%emt 0:01:38]} 21. Nxh5 {[%emt 0:00:03]} Rh7 {[%emt 0:02:34]} (21... Qf8 $16) 22. Rdg1 {[%emt 0:03:54] Threatens to win with g6.} Bc8 $2 {[%emt 0:09:20]} (22... Bh8 {keeps fighting.} 23. Ng3 c6) 23. g6 $18 {[%emt 0:01:16]} fxg6 {[%emt 0:00:06]} 24. Rxg6 {[%emt 0:00:04]} Qf7 {[%emt 0:04:26]} (24... Qf8 $142 25. Rhg1 Rd7) 25. Rhg1 {[%emt 0:00:16][%cal Rg6g7]} Bf8 {[%emt 0:01:22]} 26. Nf6+ {[%emt 0:00:55]} Ke7 {[%emt 0:00:02]} 27. Ng8+ {[%emt 0:02:43]} Ke8 {[%emt 0:00:11]} 28. Nf6+ {[%emt 0:00:02]} (28. Bh6 $142) 28... Ke7 {[%emt 0:00:06]} 29. Nxh7 {[%emt 0:01:24]} Qxh7 {[%emt 0:00:07]} 30. Bg5+ {[%emt 0:00:40]} Ke8 {[%emt 0:00:07]} 31. Bxd8 {[%emt 0:00:07]} Kxd8 {[%emt 0:00:05]} 32. Rg8 {[%emt 0:02:02]} Ke7 {[%emt 0:01:16]} 33. f4 {[%emt 0:01:16]} Ncd7 {[%emt 0:00:55]} 34. fxe5 {[%emt 0:00:53]} Nxe5 {[%emt 0:04:16]} 35. h5 {[%emt 0:00:25] aiming for Qg2.} Nbd7 {[%emt 0:00:00]} 36. Qf2 {[%emt 0:00:33]} Qxh5 {[%emt 0:00:00]} 37. Ne2 {[%emt 0:00:04]} (37. Rf1 Ng4 38. Qf4 Ngf6 $18) 37... Qf7 {[%emt 0:00:04]} 38. Qh4+ {[%emt 0:00:57]} Nf6 {[%emt 0:00:01]} 39. Nd4 {[%emt 0:00:26] Against Nf3. And now Nc6+ would win.} Ke8 {[%emt 0:00:42]} 40. R8g2 {[%emt 0:00:00]} (40. Rh8 Ng6 41. Rxf8+ Nxf8 $18) 40... Bd7 {[%emt 0:00:00]} 41. Rf2 {[%emt 0:05:36]} Be7 {[%emt 0:03:58]} 42. Nf5 {[%emt 0:04:04]} Bxf5 {[%emt 0:00:35]} 43. Rxf5 {[%emt 0:00:03] Qf2 is the strong threat. Chess con chili.} (43. exf5 Kd7 $14) 43... Qh7 {[%emt 0:02:15]} 44. Qf4 {[%emt 0:01:48]} (44. Qxh7 Nxh7 45. Rg8+ Nf8) 44... Ned7 {[%emt 0:03:15]} 45. Qf3 {[%emt 0:02:59]} Ne5 {[%emt 0:02:57]} 46. Qf4 {[%emt 0:00:39]} (46. Qg2 $18) 46... Nfd7 $2 {[%emt 0:00:32] Pair of Knights!} (46... Ned7 $1 $11) 47. Qg3 {[%emt 0:01:58]} Nc5 {[%emt 0:03:07]} (47... c5 $142 48. Qg2 Bf8) 48. Rxe5 {[%emt 0:00:48]} dxe5 {[%emt 0:00:00]} 49. Qxe5 {[%emt 0:00:02]} Qxe4 {[%emt 0:00:14] [#]} 50. Qxc7 {[%emt 0:01:01]} ({White has to play} 50. Qh5+ $1 $18 Kd7 51. Qh3+ Kd6 52. Qh6+ Ke5 53. Rh1) 50... Qxd5 $16 {[%emt 0:00:12]} 51. Re1 {[%emt 0:00:37][%csl Ge1][%cal Rc7e7]} Ne4 {[%emt 0:02:00]} 52. Qc8+ {[%emt 0:00:27][%mdl 1024] White has strong compensation.} Kf7 $1 {[%emt 0:00:06]} 53. Rg1 {[%emt 0:00:59]} (53. Qxa6 Bh4 54. Rf1+ Bf6 $16) 53... Nf6 {[%emt 0:03:13] Inhibits Qg8+.} (53... Bg5 $14) 54. Qxa6 {[%emt 0:00:05]} (54. Qh8 Bf8 $16) 54... b4 {[%emt 0:00:53] [#]} (54... Bd6 $16 55. Qa7+ Ke6 56. Re1+ (56. Rf1 Be5 $16) 56... Be5) 55. a4 $1 $18 {[%emt 0:01:47]} ({Resist} 55. axb4 Bxb4 56. Qe2 Bc5) 55... b3 {[%emt 0:00:13]} 56. c3 {[%emt 0:00:10]} (56. cxb3 $18 {Hoping for Ka2.} Qxb3 57. Rf1) 56... Qe4+ {[%emt 0:00:56]} (56... Bc5 $16 57. Rf1 Bd6) 57. Ka1 {[%emt 0:00:01]} Qc2 $2 {[%emt 0:00:46] Against Rd1} (57... Qd5 $16 {was called for.} 58. Re1 Bc5) 58. Re1 {[%emt 0:01:03] White wants to mate with Qe6+.} Ba3 $2 {[%emt 0:00:22]} (58... Kg6 $18 59. Rg1+ (59. Qe6 Bc5 $18) 59... Kf7 60. Qc4+ Kf8 61. Qc8+ Kf7 62. Qc4+ Kf8 63. Qc8+ Kf7) 59. Qe6+ {[%emt 0:00:07] Weighted Error Value: White=0.42/Black=0.40} ({Weaker is} 59. Qc4+ Kg6 60. Rg1+ Kf5 61. Qf1+ (61. Qc8+ Kf4 $16) 61... Ke6 62. Qc4+ Kf5 63. Qf1+ (63. Qc8+ Kf4 $16) 63... Ke6 64. Qc4+ Kf5 $16) 1-0

[Event "2nd Serbia Open Masters 2022"]
[Site "Novi Sad"]
[Date "2022.07.01"]
[Round "4.41"]
[White "Neelash Saha"]
[Black "Pham, Khoi"]
[Result "1-0"]
[ECO "B31"]
[WhiteElo "2439"]
[BlackElo "2291"]
[Annotator "TA"]
[PlyCount "57"]
[EventDate "2022.06.28"]
[EventType "swiss"]
[EventCountry "SRB"]
[SourceTitle "playchess.com"]
[Source "ChessBase"]
[SourceQuality "1"]
[TimeControl "40/5400+30:900+30"]

{[%evp 15,57,19,24,5,0,0,0,0,0,6,16,0,29,0,0,0,8,0,52,39,19,30,30,43,50,32,48,0,83,76,248,237,486,372,844,844,844,844,830,824,812,803,904,900]} 1. e4 {[%emt 0:00:09]} c5 {[%emt 0:00:10]} 2. Nf3 {[%emt 0:00:05]} Nc6 {[%emt 0:00:05]} 3. Bb5 {[%emt 0:00:04]} g6 {[%emt 0:00:09]} 4. O-O {[%emt 0:00:05]} Bg7 {[%emt 0:00:05]} 5. c3 {[%emt 0:00:05]} e5 {[%emt 0:00:09]} 6. d4 {[%emt 0:00:05]} cxd4 {[%emt 0:00:23]} 7. cxd4 {[%emt 0:00:05]} exd4 {[%emt 0:00:06]} 8. Bf4 {[%emt 0:00:04]} a6 {[%emt 0:00:25]} 9. Ba4 {[%emt 0:00:05][%mdl 1024] White has compensation. B31: Sicilian: 2...Nc6 3 Bb5 g6.} Nge7 {[%emt 0:00:07] 9...Nge7 is better than 9...b5.} 10. Bd6 {[%emt 0:00:33]} b5 {[%emt 0:00:31]} 11. Bb3 {[%emt 0:00:05] The position is equal.} Bb7 {[%emt 0:00:04]} 12. Ng5 {[%emt 0:00:31]} O-O {[%emt 0:00:15]} 13. Qf3 {[%emt 0:00:02][%cal Rb3f7]} Qe8 {[%emt 0:00:05]} (13... h6 $2 14. Nxf7 Rxf7 15. Qxf7+ Kh7 16. a4 $18) 14. Qg3 {[%emt 0:00:06]} Na5 {[%emt 0:00:55]} 15. Nd2 $40 {[%emt 0:01:20][%cal Og5h7][%mdl 128] Black needs to defend precisely.} h6 {[%emt 0:00:30]} 16. Ngf3 {[%emt 0:01:01]} Nxb3 {[%emt 0:01:33] [#]} (16... Rc8 $1 $11) 17. Nxb3 $146 {[%emt 0:01:45]} ({Predecessor:} 17. axb3 Rc8 18. Rac1 Rc6 19. b4 Qd8 20. Rxc6 Nxc6 21. Bxf8 Qxf8 22. Qc7 Qc8 23. Qf4 Nxb4 {½-½ (39) Malek,D (2376)-Salna,A (2227) Krakow 2022}) 17... Bxe4 {[%emt 0:07:26] [#] Hoping for ...Nf5.} 18. Nfxd4 {[%emt 0:00:09] Threatens to win with Rfe1.} f5 {[%emt 0:02:47]} 19. Rfe1 {[%emt 0:01:58] f3 is the strong threat.} ({Don't play} 19. Bxe7 Qxe7 20. Qxg6 f4 $15) 19... Rf7 {[%emt 0:13:37]} 20. Rad1 {[%emt 0:00:32]} Kh7 {[%emt 0:11:43]} 21. Nf3 {[%emt 0:35:31]} (21. f3 $14 {should be considered.} Bd5 22. Nc5) 21... Bf6 {[%emt 0:16:58]} (21... Nc8 $11) 22. Ne5 {[%emt 0:07:45] White is more active.} Rg7 {[%emt 0:00:39] This move loses the game for Black.} (22... Bc2 $16) 23. Nc5 $1 $18 {[%emt 0:01:21][%csl LRd7,LRe4] Pair of Knights!} Nc8 $2 {[%emt 0:06:11]} (23... Ng8 {might work better.} 24. f3 (24. Nxe4 fxe4 25. Rxe4 Qe6 $16) 24... Bc2) 24. Nexd7 {[%emt 0:09:55]} ({Not} 24. Nxe4 fxe4 25. Ng4 (25. Rxe4 Nxd6 26. Rxd6 Bxe5 $16) 25... Rf7 $18) 24... Be7 {[%emt 0:28:39]} (24... Rxd7 25. Nxd7 Qxd7) 25. Bxe7 {[%emt 0:01:07] White is clearly winning.} Qxe7 {[%emt 0:00:06]} 26. f3 {[%emt 0:00:09][%cal Bf2f3,Bf3e4,Be4f5][%mdl 32]} Nb6 {[%emt 0:00:49]} 27. fxe4 {[%emt 0:00:48]} Nxd7 {[%emt 0:02:09]} 28. Nxd7 {[%emt 0:00:05] And now exf5 would win.} Rd8 {[%emt 0:00:20] [#]} 29. exf5 $1 {[%emt 0:07:15] Weighted Error Value: White=0.13 (very precise) /Black=0.39} 1-0

[Event "2nd Serbia Open Masters 2022"]
[Site "Novi Sad"]
[Date "2022.07.01"]
[Round "4.42"]
[White "Milikow, Elie"]
[Black "Nareks, Matic"]
[Result "1/2-1/2"]
[ECO "B01"]
[WhiteElo "2428"]
[BlackElo "2221"]
[Annotator "TA"]
[PlyCount "68"]
[EventDate "2022.06.28"]
[EventType "swiss"]
[EventCountry "SRB"]
[SourceTitle "playchess.com"]
[Source "ChessBase"]
[SourceQuality "1"]
[TimeControl "40/5400+30:900+30"]

{[%evp 21,68,0,5,0,7,12,10,14,17,20,11,6,6,6,22,5,12,-23,-23,-9,0,0,0,-20,-16,-53,-54,-54,-58,-60,-62,-72,-7,-8,-13,-78,-31,-37,0,0,0,0,0,0,0,0,0,0,0]} 1. e4 {[%emt 0:00:07]} d5 {[%emt 0:00:13]} 2. exd5 {[%emt 0:00:18]} Qxd5 {[%emt 0:00:06]} 3. Nc3 {[%emt 0:00:22]} Qa5 {[%emt 0:00:07]} 4. d4 {[%emt 0:00:54]} Nf6 {[%emt 0:00:06]} 5. h3 {[%emt 0:04:19]} Bf5 {[%emt 0:06:27]} 6. Nf3 {[%emt 0:02:12]} c6 {[%emt 0:05:46]} 7. Bc4 {[%emt 0:01:06]} e6 {[%emt 0:00:58]} 8. O-O {[%emt 0:02:44]} Bb4 {[%emt 0:03:30]} 9. Bd2 {[%emt 0:00:59]} O-O {[%emt 0:00:36]} 10. a3 {[%emt 0:01:35]} Bxc3 {[%emt 0:00:10]} 11. Bxc3 {[%emt 0:00:27]} Qc7 {[%emt 0:00:46]} 12. Bd3 {[%emt 0:10:41] B01: Scandinavian Defence.} Bxd3 {[%emt 0:01:29]} 13. Qxd3 {[%emt 0:00:10] [#]} Rd8 $146 {[%emt 0:01:08]} ({Predecessor:} 13... Nbd7 14. Rad1 Rad8 15. Rfe1 Nb6 16. b3 Nbd5 17. Bb2 Rd7 18. Bc1 Rfd8 19. Ne5 Rd6 {1-0 (30) Albesa,A (1389)-Nistri,P (952) LSS email 2008}) 14. Qe2 {[%emt 0:00:53]} Nbd7 {[%emt 0:01:51]} 15. b3 {[%emt 0:03:56]} Rac8 {[%emt 0:02:47]} 16. Bb2 {[%emt 0:01:59]} b5 {[%emt 0:05:43]} 17. Rac1 {[%emt 0:07:58]} a6 {[%emt 0:03:33]} 18. Rfd1 {[%emt 0:12:39]} h6 {[%emt 0:03:30]} 19. Ne5 {[%emt 0:07:15]} Nxe5 {[%emt 0:03:19]} 20. dxe5 {[%emt 0:04:33]} Nd5 {[%emt 0:02:34]} 21. c4 {[%emt 0:02:26]} bxc4 {[%emt 0:03:23]} 22. bxc4 {[%emt 0:08:32]} Ne7 {[%emt 0:01:02]} 23. Rd3 {[%emt 0:04:16]} Rxd3 {[%emt 0:00:57]} 24. Qxd3 {[%emt 0:00:08]} Rd8 {[%emt 0:00:34]} 25. Qe2 {[%emt 0:03:15]} c5 {[%emt 0:05:28]} 26. Rd1 {[%emt 0:01:05]} Nc6 {[%emt 0:00:56]} (26... Rb8 $17) 27. Rxd8+ $11 {[%emt 0:02:13]} Qxd8 {[%emt 0:00:08][%mdl 4096] Endgame KQB-KQN} 28. Qe4 {[%emt 0:17:28] [#]} (28. Bc3 $11 {keeps the balance.}) 28... Qd1+ {[%emt 0:05:19]} (28... Ne7 $1 $17 {...Qd1+ is the strong threat.} 29. Qc2 Ng6) 29. Kh2 $15 {[%emt 0:00:00]} Nd4 {[%emt 0:00:06] Strongly threatening ...Ne2.} (29... Ne7 $5 {[%cal Rd1d2]} 30. Qe3 Qc2 31. Qxc5 Nf5 $15) 30. Bxd4 {[%emt 0:00:00] The position is equal.} cxd4 {[%emt 0:00:12]} ({Don't do} 30... Qxd4 31. Qxd4 cxd4 32. Kg3 $16) 31. Qa8+ {[%emt 0:00:00]} Kh7 {[%emt 0:01:27]} 32. Qe4+ {[%emt 0:00:00]} Kg8 {[%emt 0:04:47]} 33. Qa8+ {[%emt 0:00:00]} Kh7 {[%emt 0:00:06] [#] Threatens to win with ...Qe2.} 34. Qe4+ {[%emt 0:00:00]} Kg8 {[%emt 0:00:17] Weighted Error Value: White=0.13 (very precise) /Black=0.11 (very precise)} 1/2-1/2

[Event "2nd Serbia Open Masters 2022"]
[Site "Novi Sad"]
[Date "2022.07.01"]
[Round "4.43"]
[White "Souhardo Basak"]
[Black "Vignesh N R"]
[Result "1/2-1/2"]
[ECO "B92"]
[WhiteElo "2357"]
[BlackElo "2427"]
[Annotator "TA"]
[PlyCount "60"]
[EventDate "2022.06.28"]
[EventType "swiss"]
[EventCountry "SRB"]
[SourceTitle "playchess.com"]
[Source "ChessBase"]
[SourceQuality "1"]
[TimeControl "40/5400+30:900+30"]

{[%evp 21,60,0,13,-20,-15,-18,-15,-18,-7,-47,-7,-7,2,0,10,36,29,34,14,8,11,0,8,-10,0,-9,-9,-7,0,0,2,0,4,0,0,0,27,12,64,61,79]} 1. e4 {[%emt 0:00:04]} c5 {[%emt 0:00:07]} 2. Nf3 {[%emt 0:00:28]} d6 {[%emt 0:00:04]} 3. d4 {[%emt 0:00:05]} cxd4 {[%emt 0:00:05]} 4. Nxd4 {[%emt 0:00:05]} Nf6 {[%emt 0:00:03]} 5. Nc3 {[%emt 0:00:07]} a6 {[%emt 0:00:02]} 6. Be2 {[%emt 0:00:09]} e5 {[%emt 0:00:31]} 7. Nb3 {[%emt 0:00:10]} Be7 {[%emt 0:00:13]} 8. Be3 {[%emt 0:00:09]} Be6 {[%emt 0:00:08]} 9. Nd5 {[%emt 0:00:18]} Nbd7 {[%emt 0:00:27]} 10. Qd3 {[%emt 0:00:22]} Bxd5 {[%emt 0:01:48]} 11. exd5 {[%emt 0:00:03]} Rc8 {[%emt 0:00:15] [#] Nowadays more popular than 11...0-0.} 12. a4 $146 {[%emt 0:06:19] B92: Sicilian Najdorf: 6 Be2.} ({Predecessor:} 12. g4 Nb6 13. Bxb6 Qxb6 14. g5 Nd7 15. h4 O-O 16. O-O-O Nc5 17. Nxc5 Rxc5 18. Qe4 Ra5 19. Kb1 g6 {1-0 (36) Najer,E (2661)-Sasikiran,K (2650) Chess.com INT 2022}) 12... Nb6 {[%emt 0:04:17]} 13. Bxb6 {[%emt 0:04:19]} Qxb6 {[%emt 0:00:03]} 14. O-O {[%emt 0:01:20] The position is equal.} O-O {[%emt 0:00:49]} 15. c4 {[%emt 0:17:28]} (15. a5 $5 {[%cal Ra5b6]} Qc7 16. c3 $11) 15... g6 {[%emt 0:03:09]} 16. a5 {[%emt 0:04:44]} Qb4 {[%emt 0:02:49]} 17. Ra3 {[%emt 0:05:38]} Nd7 {[%emt 0:05:20]} 18. Rfa1 {[%emt 0:16:14] [#] Strongly threatening Ra4.} Nc5 {[%emt 0:03:41] Prevents Ra4.} 19. Nxc5 {[%emt 0:01:31]} Qxc5 {[%emt 0:00:23]} 20. Rb3 {[%emt 0:02:23]} Rb8 {[%emt 0:07:14]} 21. Qe3 {[%emt 0:08:46]} Qc7 {[%emt 0:04:09]} 22. Kh1 {[%emt 0:03:11]} Rfc8 {[%emt 0:03:18]} 23. Rba3 {[%emt 0:03:29]} b6 {[%emt 0:10:38]} 24. axb6 {[%emt 0:03:50]} Rxb6 {[%emt 0:00:27]} 25. b3 {[%emt 0:01:26]} Qb7 {[%emt 0:02:04]} 26. Bd1 {[%emt 0:02:27]} Bd8 {[%emt 0:02:13]} 27. Qd2 {[%emt 0:04:09]} Kg7 {[%emt 0:04:42]} 28. g3 {[%emt 0:01:17]} Rc5 {[%emt 0:08:44]} 29. Kg2 {[%emt 0:01:10]} Bc7 {[%emt 0:03:52]} (29... a5 $11) 30. h4 $14 {[%emt 0:00:58]} Bd8 {[%emt 0:09:30] Weighted Error Value: White=0.07 (flawless) /Black=0.12 (very precise)} 1/2-1/2

[Event "2nd Serbia Open Masters 2022"]
[Site "Novi Sad"]
[Date "2022.07.01"]
[Round "4.44"]
[White "Nogerbek, Kazybek"]
[Black "Andreev, Konstantin"]
[Result "1-0"]
[ECO "A28"]
[WhiteElo "2424"]
[BlackElo "2238"]
[Annotator "ChessBase"]
[PlyCount "137"]
[EventDate "2022.06.28"]
[EventType "swiss"]
[EventCountry "SRB"]
[SourceTitle "playchess.com"]
[Source "ChessBase"]
[SourceQuality "1"]
[TimeControl "40/5400+30:900+30"]

1. c4 {[%emt 0:02:09]} Nf6 {[%emt 0:00:29]} 2. Nc3 {[%emt 0:00:17]} e5 {[%emt 0:00:27]} 3. Nf3 {[%emt 0:01:35]} Nc6 {[%emt 0:01:03]} 4. d3 {[%emt 0:01:13]} h6 {[%emt 0:04:19]} 5. g3 {[%emt 0:02:26]} d5 {[%emt 0:00:17]} 6. cxd5 {[%emt 0:00:15]} Nxd5 {[%emt 0:00:05]} 7. Bg2 {[%emt 0:00:16]} Nb6 {[%emt 0:01:13]} 8. O-O {[%emt 0:00:42]} Be7 {[%emt 0:00:31]} 9. b3 {[%emt 0:00:22]} O-O {[%emt 0:00:39]} 10. Bb2 {[%emt 0:00:09]} Re8 {[%emt 0:01:31]} 11. Rc1 {[%emt 0:00:40]} Bf8 {[%emt 0:08:28]} 12. Ne4 {[%emt 0:01:33]} Nd4 {[%emt 0:01:27]} 13. Nxd4 {[%emt 0:04:35]} exd4 {[%emt 0:00:05]} 14. Nc5 {[%emt 0:01:12]} c6 {[%emt 0:04:48]} 15. b4 {[%emt 0:02:13]} Rb8 {[%emt 0:17:06]} 16. Re1 {[%emt 0:02:59]} g6 {[%emt 0:02:03]} 17. a4 {[%emt 0:01:13]} Bg7 {[%emt 0:03:06]} 18. Qb3 {[%emt 0:01:23]} Nd7 {[%emt 0:08:02]} 19. Ne4 {[%emt 0:06:19]} Nf6 {[%emt 0:06:35]} 20. Nxf6+ {[%emt 0:05:12]} Bxf6 {[%emt 0:01:45]} 21. b5 {[%emt 0:00:48]} Be6 {[%emt 0:00:59]} 22. Qb4 {[%emt 0:01:52]} Qb6 {[%emt 0:06:24]} 23. Qc5 {[%emt 0:08:32]} Qxc5 {[%emt 0:04:16]} 24. Rxc5 {[%emt 0:00:12]} Be7 {[%emt 0:00:20]} 25. Rcc1 {[%emt 0:03:45]} Bb4 {[%emt 0:05:16]} 26. Bxd4 {[%emt 0:00:41]} Bxe1 {[%emt 0:04:30]} 27. Rxe1 {[%emt 0:00:25]} Bd5 {[%emt 0:11:00]} 28. Bxa7 {[%emt 0:04:59]} Ra8 {[%emt 0:02:12]} 29. Be3 {[%emt 0:01:38]} Bxg2 {[%emt 0:01:06]} 30. Kxg2 {[%emt 0:00:08]} Rxa4 {[%emt 0:01:09]} 31. bxc6 {[%emt 0:00:10]} bxc6 {[%emt 0:00:04]} 32. Bxh6 {[%emt 0:00:14]} Ra2 {[%emt 0:02:19]} 33. Be3 {[%emt 0:02:33]} Rea8 {[%emt 0:00:41]} 34. Bd4 {[%emt 0:00:37]} Rd8 {[%emt 0:00:35]} 35. Bc5 {[%emt 0:01:20]} Rc2 {[%emt 0:01:37]} 36. d4 {[%emt 0:01:13]} Rb8 {[%emt 0:00:09]} 37. g4 {[%emt 0:04:17]} Rbb2 {[%emt 0:00:30]} 38. Kf3 {[%emt 0:00:03]} f6 {[%emt 0:00:36]} 39. h4 {[%emt 0:00:40]} Kg7 {[%emt 0:00:26]} 40. Bd6 {[%emt 0:00:00]} Rd2 {[%emt 0:00:00]} 41. Ke3 {[%emt 0:02:29]} Rdc2 {[%emt 0:02:06]} 42. Bg3 {[%emt 0:01:58]} Rd2 {[%emt 0:08:15]} 43. Bf4 {[%emt 0:01:54]} Rdc2 {[%emt 0:01:23]} 44. Kf3 {[%emt 0:00:16]} Ra2 {[%emt 0:01:06]} 45. Be3 {[%emt 0:03:43]} Rab2 {[%emt 0:01:04]} 46. h5 {[%emt 0:01:12]} g5 {[%emt 0:00:49]} 47. Ra1 {[%emt 0:02:13]} Ra2 {[%emt 0:00:44]} 48. Re1 {[%emt 0:02:50]} Rab2 {[%emt 0:00:04]} 49. Rd1 {[%emt 0:01:48]} Rxe2 {[%emt 0:01:42]} 50. d5 {[%emt 0:01:18]} cxd5 {[%emt 0:00:04]} 51. Rxd5 {[%emt 0:00:08]} Rec2 {[%emt 0:01:41]} 52. Rd7+ {[%emt 0:00:50]} Kh6 {[%emt 0:00:09]} 53. Rd6 {[%emt 0:00:30]} Kg7 {[%emt 0:00:52]} 54. Bd4 {[%emt 0:00:39]} Rd2 {[%emt 0:01:00]} 55. Bxf6+ {[%emt 0:00:38]} Kh6 {[%emt 0:00:50]} 56. Bd4+ {[%emt 0:00:18]} Kh7 {[%emt 0:00:02]} 57. Ke4 {[%emt 0:03:31]} Rxd4+ {[%emt 0:03:19]} 58. Rxd4 {[%emt 0:00:51]} Rxf2 {[%emt 0:00:04]} 59. Ke5 {[%emt 0:00:08]} Ra2 {[%emt 0:01:06]} 60. Rd7+ {[%emt 0:00:12]} Kh6 {[%emt 0:00:01]} 61. Rd6+ {[%emt 0:00:53]} Kh7 {[%emt 0:00:06]} 62. Rg6 {[%emt 0:01:08]} Ra5+ {[%emt 0:00:06]} 63. Kf6 {[%emt 0:00:07]} Ra6+ {[%emt 0:00:23]} 64. Kxg5 {[%emt 0:00:08]} Ra5+ {[%emt 0:00:01]} 65. Kh4 {[%emt 0:00:10]} Ra4 {[%emt 0:00:09]} 66. Rf6 {[%emt 0:00:10]} Kg7 {[%emt 0:00:04]} 67. Re6 {[%emt 0:00:18]} Ra1 {[%emt 0:00:19]} 68. h6+ {[%emt 0:00:17]} Kh7 {[%emt 0:00:05]} 69. Kh5 {[%emt 0:00:04]} 1-0